[Event "DSAM Bad Wildungen 2024"]
[Site "Bad Wildungen"]
[Date "2024.08.02"]
[Round "4.19"]
[White "Schmalz, Dirk"]
[Black "Willand, Oliver"]
[Result "0-1"]
[Annotator "ChessBase"]
[ECO "B06"]
[WhiteElo "1945"]
[BlackElo "1868"]
[PlyCount "50"]
[EventDate "2024.07.31"]
[EventCountry "GER"]
[SourceTitle "playchess.com"]
[Source "ChessBase"]
[SourceQuality "1"]
[TimeControl "40/5400+30:900+30"]

1. d4 {[%emt 0:00:48]} g6 {[%emt 0:00:23]} 2. e4 {[%emt 0:00:23]} d6 {[%emt 0:00:08]} 3. Nc3 {[%emt 0:00:20]} Bg7 {[%emt 0:00:12]} 4. Be2 {[%emt 0:00:34]} c6 {[%emt 0:01:26]} 5. Be3 {[%emt 0:01:28]} Nd7 {[%emt 0:00:53]} 6. f4 {[%emt 0:02:29]} e5 {[%emt 0:05:29]} 7. Nf3 {[%emt 0:08:08]} Ne7 {[%emt 0:03:22]} 8. O-O {[%emt 0:00:55]} O-O {[%emt 0:01:53]} 9. Bc4 {[%emt 0:06:07]} Nb6 {[%emt 0:05:17]} 10. Bb3 {[%emt 0:00:20]} exf4 {[%emt 0:01:26]} 11. Bxf4 {[%emt 0:00:51]} d5 {[%emt 0:01:10]} 12. Qd2 {[%emt 0:05:34]} Be6 {[%emt 0:19:51]} 13. Ng5 {[%emt 0:08:28]} Qd7 {[%emt 0:04:42]} 14. Nxe6 {[%emt 0:04:27]} fxe6 {[%emt 0:00:15]} 15. e5 {[%emt 0:03:47]} Rf7 {[%emt 0:03:20]} 16. Qd3 {[%emt 0:03:49]} Raf8 {[%emt 0:01:31]} 17. Bg5 {[%emt 0:03:33]} a6 {[%emt 0:03:57]} 18. Ne2 {[%emt 0:03:24]} Na8 {[%emt 0:15:08]} 19. c3 {[%emt 0:03:33]} c5 {[%emt 0:02:44]} 20. Qh3 {[%emt 0:05:21]} Rxf1+ {[%emt 0:01:55]} 21. Rxf1 {[%emt 0:00:08]} Rxf1+ {[%emt 0:00:06]} 22. Kxf1 {[%emt 0:00:06]} Nc6 {[%emt 0:01:05]} 23. Ke1 {[%emt 0:14:44]} Nc7 {[%emt 0:01:45]} 24. Qg4 {[%emt 0:08:43]} Qf7 {[%emt 0:03:31]} 25. Bc2 {[%emt 0:01:30]} cxd4 {[%emt 0:04:51]} 0-1

[Event "DSAM Bad Wildungen 2024"]
[Site "Bad Wildungen"]
[Date "2024.08.02"]
[Round "4.20"]
[White "Kettner-Nikolaus, Frank"]
[Black "Rose, Luis Stratos"]
[Result "1/2-1/2"]
[Annotator "ChessBase"]
[ECO "D02"]
[WhiteElo "1940"]
[BlackElo "1868"]
[PlyCount "50"]
[EventDate "2024.07.31"]
[EventCountry "GER"]
[SourceTitle "playchess.com"]
[Source "ChessBase"]
[SourceQuality "1"]
[TimeControl "40/5400+30:900+30"]

1. d4 {[%emt 0:07:17]} d5 {[%emt 0:00:30]} 2. Bf4 {[%emt 0:01:06]} Nf6 {[%emt 0:00:32]} 3. e3 {[%emt 0:00:14]} g6 {[%emt 0:00:57]} 4. Nf3 {[%emt 0:00:53]} Bg7 {[%emt 0:00:30]} 5. Bd3 {[%emt 0:02:42]} O-O {[%emt 0:01:52]} 6. O-O {[%emt 0:00:12]} c5 {[%emt 0:00:09]} 7. c3 {[%emt 0:01:26]} Nc6 {[%emt 0:02:32]} 8. Nbd2 {[%emt 0:02:25]} Nh5 {[%emt 0:02:34]} 9. Bg5 {[%emt 0:01:39]} h6 {[%emt 0:01:25]} 10. Bh4 {[%emt 0:00:07]} Qb6 {[%emt 0:01:30]} 11. Rb1 {[%emt 0:09:16]} e5 {[%emt 0:11:05]} 12. dxe5 {[%emt 0:02:23]} Nxe5 {[%emt 0:01:19]} 13. Nxe5 {[%emt 0:00:41]} Bxe5 {[%emt 0:00:09]} 14. Be2 {[%emt 0:02:25]} Bf6 {[%emt 0:03:49]} 15. Qa4 {[%emt 0:06:09]} Ng7 {[%emt 0:08:32]} 16. Bxf6 {[%emt 0:03:25]} Qxf6 {[%emt 0:00:10]} 17. Bf3 {[%emt 0:05:52]} Be6 {[%emt 0:13:26]} 18. e4 {[%emt 0:04:13]} Rfd8 {[%emt 0:02:27]} 19. Rbd1 {[%emt 0:02:24]} Qe5 {[%emt 0:10:32]} 20. exd5 {[%emt 0:03:35]} Bxd5 {[%emt 0:00:15]} 21. Bxd5 {[%emt 0:00:40]} Qxd5 {[%emt 0:09:01]} 22. Nf3 {[%emt 0:02:05]} Qe6 {[%emt 0:00:31]} 23. Rxd8+ {[%emt 0:00:36]} Rxd8 {[%emt 0:00:06]} 24. Qxa7 {[%emt 0:00:14]} Qe2 {[%emt 0:00:14]} 25. h3 {[%emt 0:01:24]} Qxb2 {[%emt 0:00:35]} 1/2-1/2

[Event "DSAM Bad Wildungen 2024"]
[Site "Bad Wildungen"]
[Date "2024.08.02"]
[Round "4.21"]
[White "Dubinker, Philipp"]
[Black "Langer, Paul Georg"]
[Result "1-0"]
[Annotator "ChessBase"]
[ECO "E05"]
[WhiteElo "1921"]
[BlackElo "1933"]
[PlyCount "63"]
[EventDate "2024.07.31"]
[EventCountry "GER"]
[SourceTitle "playchess.com"]
[Source "ChessBase"]
[SourceQuality "1"]
[TimeControl "40/5400+30:900+30"]

1. Nf3 {[%emt 0:00:07]} Nf6 {[%emt 0:00:11]} 2. c4 {[%emt 0:00:03]} e6 {[%emt 0:00:22]} 3. g3 {[%emt 0:00:08]} d5 {[%emt 0:00:42]} 4. d4 {[%emt 0:00:06]} Be7 {[%emt 0:00:07]} 5. Bg2 {[%emt 0:00:04]} O-O {[%emt 0:00:12]} 6. O-O {[%emt 0:00:04]} dxc4 {[%emt 0:00:05]} 7. Qc2 {[%emt 0:00:35]} a6 {[%emt 0:00:16]} 8. a4 {[%emt 0:00:21]} b6 {[%emt 0:00:36]} 9. Nbd2 {[%emt 0:04:36]} Bb7 {[%emt 0:04:42]} 10. Nxc4 {[%emt 0:02:05]} Nbd7 {[%emt 0:06:49]} 11. Rd1 {[%emt 0:08:39]} c5 {[%emt 0:17:30]} 12. Bf4 {[%emt 0:08:36]} Be4 {[%emt 0:12:40]} 13. Qd2 {[%emt 0:03:45]} cxd4 {[%emt 0:07:54]} 14. Nxd4 {[%emt 0:03:08]} Bxg2 {[%emt 0:02:30]} 15. Kxg2 {[%emt 0:00:28]} Qc8 {[%emt 0:12:51]} 16. Rac1 {[%emt 0:04:43]} Qb7+ {[%emt 0:09:16]} 17. f3 {[%emt 0:02:54]} Nd5 {[%emt 0:04:26]} 18. Bd6 {[%emt 0:08:19]} Bxd6 {[%emt 0:08:14]} 19. Nxd6 {[%emt 0:00:08]} Qb8 {[%emt 0:00:37]} 20. Nc4 {[%emt 0:04:01]} Ne5 {[%emt 0:01:43]} 21. e4 {[%emt 0:03:44]} Nxc4 {[%emt 0:01:34]} 22. Rxc4 {[%emt 0:00:43]} Ne7 {[%emt 0:00:35]} 23. Qb4 {[%emt 0:02:00]} Ra7 {[%emt 0:01:15]} 24. Nc6 {[%emt 0:07:00]} Nxc6 {[%emt 0:00:05]} 25. Rxc6 {[%emt 0:00:04]} b5 {[%emt 0:01:26]} 26. a5 {[%emt 0:01:33]} Rc7 {[%emt 0:03:48]} 27. Rxa6 {[%emt 0:05:45]} Rd8 {[%emt 0:02:32]} 28. Qxb5 {[%emt 0:02:49]} Rc2+ {[%emt 0:00:30]} 29. Kh3 {[%emt 0:00:19]} Qc8 {[%emt 0:00:40]} 30. Rc6 {[%emt 0:02:40]} Rxc6 {[%emt 0:00:34]} 31. Qxc6 {[%emt 0:00:33]} Qb8 {[%emt 0:00:28]} 32. Qb7 {[%emt 0:03:00]} 1-0

[Event "DSAM Bad Wildungen 2024"]
[Site "Bad Wildungen"]
[Date "2024.08.02"]
[Round "4.22"]
[White "Schmidt-Schaeffer, Sebastian"]
[Black "Reinecke, Katharina"]
[Result "0-1"]
[Annotator "ChessBase"]
[ECO "B11"]
[WhiteElo "2344"]
[BlackElo "1949"]
[PlyCount "40"]
[EventDate "2024.07.31"]
[EventCountry "GER"]
[SourceTitle "playchess.com"]
[Source "ChessBase"]
[SourceQuality "1"]
[TimeControl "40/5400+30:900+30"]

1. e4 {[%emt 0:00:03]} c6 {[%emt 0:00:03]} 2. Nc3 {[%emt 0:00:18]} d5 {[%emt 0:00:11]} 3. Nf3 {[%emt 0:00:16]} Bg4 {[%emt 0:00:34]} 4. h3 {[%emt 0:00:39]} Bxf3 {[%emt 0:00:42]} 5. Qxf3 {[%emt 0:00:12]} e6 {[%emt 0:00:51]} 6. d4 {[%emt 0:01:18]} dxe4 {[%emt 0:01:06]} 7. Qxe4 {[%emt 0:00:23]} Nf6 {[%emt 0:00:51]} 8. Qd3 {[%emt 0:00:06]} Bd6 {[%emt 0:04:11]} 9. Bd2 {[%emt 0:04:08]} Nbd7 {[%emt 0:01:57]} 10. O-O-O {[%emt 0:03:51]} Qc7 {[%emt 0:10:36]} 11. g3 {[%emt 0:04:40]} b5 {[%emt 0:12:13]} 12. Bg2 {[%emt 0:09:24]} Rc8 {[%emt 0:02:08]} 13. Rhe1 {[%emt 0:05:35]} O-O {[%emt 0:02:16]} 14. g4 {[%emt 0:04:27]} b4 {[%emt 0:02:30]} 15. Ne4 {[%emt 0:01:41]} Nxe4 {[%emt 0:01:07]} 16. Bxe4 {[%emt 0:03:41]} c5 {[%emt 0:06:26]} 17. Bxh7+ {[%emt 0:09:04]} Kh8 {[%emt 0:00:05]} 18. Be4 {[%emt 0:01:10]} c4 {[%emt 0:01:54]} 19. Qf3 {[%emt 0:01:12]} c3 {[%emt 0:00:38]} 20. Bg5 {[%emt 0:02:54]} Qa5 {[%emt 0:01:56]} 0-1

[Event "DSAM Bad Wildungen 2024"]
[Site "Bad Wildungen"]
[Date "2024.08.02"]
[Round "4.23"]
[White "Roenker, Sebastian"]
[Black "Brixius, Dirk"]
[Result "1-0"]
[Annotator "NA"]
[ECO "D02"]
[WhiteElo "1851"]
[BlackElo "1809"]
[PlyCount "147"]
[EventDate "2024.07.31"]
[EventCountry "GER"]
[SourceTitle "playchess.com"]
[Source "ChessBase"]
[SourceQuality "1"]
[TimeControl "40/5400+30:900+30"]

1. d4 {[%emt 0:00:04]} d5 {[%emt 0:00:02]} 2. Bf4 {[%emt 0:00:09]} Nf6 {[%emt 0:00:33]} 3. Nf3 {[%emt 0:00:05]} e6 {[%emt 0:01:28]} 4. e3 {[%emt 0:01:17]} Bd6 {[%emt 0:02:12]} 5. Ne5 {[%emt 0:01:22]} O-O {[%emt 0:02:02]} 6. Nd2 {[%emt 0:00:09]} Nfd7 {[%emt 0:01:40]} 7. Bd3 {[%emt 0:02:42]} Nxe5 {[%emt 0:01:24]} 8. dxe5 {[%emt 0:01:15]} Be7 {[%emt 0:04:00]} 9. Qh5 {[%emt 0:01:37]} g6 {[%emt 0:00:43]} 10. Qh6 {[%emt 0:14:51]} f5 {[%emt 0:03:43]} 11. Nf3 {[%emt 0:06:02]} c5 {[%emt 0:03:38]} 12. c3 {[%emt 0:10:20]} Nc6 {[%emt 0:01:46]} 13. Qh3 {[%emt 0:09:15]} Qc7 {[%emt 0:02:54]} 14. g4 {[%emt 0:05:30]} a5 {[%emt 0:05:03]} 15. Rg1 {[%emt 0:05:02]} b6 {[%emt 0:02:20]} 16. Bh6 {[%emt 0:07:51]} Rf7 {[%emt 0:05:37]} 17. gxf5 {[%emt 0:09:38]} exf5 {[%emt 0:00:08]} 18. Bf4 {[%emt 0:00:21]} Qb7 {[%emt 0:03:14]} 19. O-O-O {[%emt 0:08:36]} Be6 {[%emt 0:02:01]} 20. Ng5 {[%emt 0:01:07]} Bxg5 {[%emt 0:01:02]} 21. Rxg5 {[%emt 0:00:08]} Kf8 {[%emt 0:04:32]} 22. Rdg1 {[%emt 0:02:43]} Ke7 {[%emt 0:04:04]} 23. Qf1 {[%emt 0:02:33]} c4 {[%emt 0:01:22]} 24. Be2 {[%emt 0:01:29]} Re8 {[%emt 0:04:34]} 25. h4 {[%emt 0:00:17]} Kd8 {[%emt 0:02:11]} 26. h5 {[%emt 0:00:36]} Ne7 {[%emt 0:00:59]} 27. hxg6 {[%emt 0:00:57]} hxg6 {[%emt 0:00:35]} 28. Qd1 {[%emt 0:00:33]} b5 {[%emt 0:02:09]} 29. R5g3 {[%emt 0:01:41]} Rg8 {[%emt 0:05:09]} 30. Bg5 {[%emt 0:00:33]} Rfg7 {[%emt 0:00:44]} 31. Bf6 {[%emt 0:00:27]} Ke8 {[%emt 0:01:33]} 32. Bxg7 {[%emt 0:00:36]} Rxg7 {[%emt 0:00:02]} 33. Bh5 {[%emt 0:00:31]} Kf7 {[%emt 0:00:57]} 34. f4 {[%emt 0:00:23]} Qa8 {[%emt 0:01:56]} 35. Qd4 {[%emt 0:03:13]} Qh8 {[%emt 0:02:04]} 36. Qd1 {[%emt 0:02:04]} Rg8 {[%emt 0:00:55]} 37. Bf3 {[%emt 0:00:42]} Rd8 {[%emt 0:01:42]} 38. Rh1 {[%emt 0:01:25]} Qf8 {[%emt 0:01:15]} 39. Rgh3 {[%emt 0:00:32]} Ke8 {[%emt 0:00:58]} 40. Rh8 {[%emt 0:00:13]} Ng8 {[%emt 0:00:39]} 41. Qg1 {[%emt 0:15:41]} Bf7 {[%emt 0:16:40]} 42. e6 {[%emt 0:00:00]} Bxe6 {[%emt 0:00:00]} 43. Qxg6+ {[%emt 0:00:00]} Kd7 {[%emt 0:00:00]} 44. R1h6 {[%emt 0:00:00]} Re8 {[%emt 0:00:00]} 45. R6h7+ {[%emt 0:00:00]} Kd6 {[%emt 0:00:00]} 46. Bh5 {[%emt 0:00:00]} Re7 {[%emt 0:00:00]} 47. Rxe7 {[%emt 0:00:40]} Qxe7 {[%emt 0:00:00]} 48. Rxg8 {[%emt 0:00:15]} Kc5 {[%emt 0:00:00]} 49. Qg5 {[%emt 0:01:47]} Qa7 {[%emt 0:00:00]} 50. Qg7 {[%emt 0:00:52]} Qa6 {[%emt 0:00:00]} 51. Qc7+ {[%emt 0:01:15]} Qc6 {[%emt 0:00:00]} 52. b4+ {[%emt 0:00:19]} cxb3 {[%emt 0:00:00]} 53. Qxc6+ {[%emt 0:00:16]} Kxc6 {[%emt 0:00:00]} 54. Rg6 {[%emt 0:00:41]} bxa2 {[%emt 0:00:00]} 55. Rxe6+ {[%emt 0:00:29]} Kd7 {[%emt 0:00:00]} 56. Kb2 {[%emt 0:00:38]} a1=Q+ {[%emt 0:00:00]} 57. Kxa1 {[%emt 0:00:04]} Kxe6 {[%emt 0:00:00]} 58. Kb2 {[%emt 0:00:40]} b4 {[%emt 0:00:00]} 59. cxb4 {[%emt 0:00:05]} axb4 {[%emt 0:00:00]} 60. Kb3 {[%emt 0:00:05]} d4 {[%emt 0:00:00]} 61. Bf7+ {[%emt 0:02:05]} Kxf7 {[%emt 0:00:00]} 62. exd4 {[%emt 0:00:06]} Ke6 {[%emt 0:00:00]} 63. Kxb4 {[%emt 0:00:34]} Kd5 {[%emt 0:00:00]} 64. Kc3 {[%emt 0:00:17]} Ke4 {[%emt 0:00:00]} 65. Kc4 {[%emt 0:00:23]} Kxf4 {[%emt 0:00:00]} 66. d5 {[%emt 0:01:35]} Ke5 {[%emt 0:00:00]} 67. Kc5 {[%emt 0:00:16]} f4 {[%emt 0:00:06]} 68. d6 {[%emt 0:00:39]} f3 {[%emt 0:02:41]} 69. d7 {[%emt 0:00:13]} Ke4 {[%emt 0:00:23]} 70. d8=Q {[%emt 0:00:16]} Ke3 {[%emt 0:01:05]} 71. Qe7+ {[%emt 0:01:19]} Kf2 {[%emt 0:00:17]} 72. Kd4 {[%emt 0:00:24]} Kg1 {[%emt 0:01:26]} 73. Qe1+ {[%emt 0:00:22]} Kg2 {[%emt 0:01:28]} 74. Ke3 {[%emt 0:00:07]} 1-0

[Event "DSAM Bad Wildungen 2024"]
[Site "Bad Wildungen"]
[Date "2024.08.02"]
[Round "4.24"]
[White "Frisch, Thomas"]
[Black "Boldt, Timo"]
[Result "0-1"]
[Annotator "NA"]
[ECO "E60"]
[WhiteElo "1792"]
[BlackElo "1801"]
[PlyCount "104"]
[EventDate "2024.07.31"]
[EventCountry "GER"]
[SourceTitle "playchess.com"]
[Source "ChessBase"]
[SourceQuality "1"]
[TimeControl "40/5400+30:900+30"]

1. d4 {[%emt 0:00:04]} Nf6 {[%emt 0:02:28]} 2. Nf3 {[%emt 0:00:16]} g6 {[%emt 0:00:08]} 3. g3 {[%emt 0:00:48]} Bg7 {[%emt 0:00:09]} 4. Bg2 {[%emt 0:00:02]} O-O {[%emt 0:00:09]} 5. c4 {[%emt 0:00:19]} c5 {[%emt 0:01:38]} 6. O-O {[%emt 0:02:43]} cxd4 {[%emt 0:01:40]} 7. Nxd4 {[%emt 0:00:16]} Nc6 {[%emt 0:00:57]} 8. Nxc6 {[%emt 0:01:08]} dxc6 {[%emt 0:02:13]} 9. Qc2 {[%emt 0:09:41]} Be6 {[%emt 0:02:50]} 10. b3 {[%emt 0:04:33]} Bf5 {[%emt 0:02:54]} 11. Qd2 {[%emt 0:11:44]} Ne4 {[%emt 0:02:39]} 12. Qf4 {[%emt 0:03:28]} Qd6 {[%emt 0:04:56]} 13. Nd2 {[%emt 0:03:53]} Qxf4 {[%emt 0:02:07]} 14. gxf4 {[%emt 0:00:20]} Nxd2 {[%emt 0:03:41]} 15. Bxd2 {[%emt 0:00:10]} Bxa1 {[%emt 0:00:05]} 16. Rxa1 {[%emt 0:00:06]} Rfd8 {[%emt 0:00:27]} 17. Bb4 {[%emt 0:03:37]} Rd7 {[%emt 0:04:01]} 18. e4 {[%emt 0:03:38]} Be6 {[%emt 0:01:29]} 19. Kf1 {[%emt 0:01:31]} a5 {[%emt 0:01:26]} 20. Bc3 {[%emt 0:00:46]} Rd3 {[%emt 0:00:22]} 21. Rc1 {[%emt 0:00:10]} Bg4 {[%emt 0:03:41]} 22. e5 {[%emt 0:04:59]} Bf3 {[%emt 0:04:43]} 23. Bxf3 {[%emt 0:03:56]} Rxf3 {[%emt 0:00:07]} 24. Ke2 {[%emt 0:00:38]} Rh3 {[%emt 0:08:10]} 25. Be1 {[%emt 0:02:13]} a4 {[%emt 0:01:07]} 26. b4 {[%emt 0:03:02]} Rd8 {[%emt 0:01:40]} 27. b5 {[%emt 0:00:22]} c5 {[%emt 0:00:42]} 28. Ba5 {[%emt 0:00:56]} Rd4 {[%emt 0:04:12]} 29. Bb6 {[%emt 0:01:02]} Re4+ {[%emt 0:01:28]} 30. Kf1 {[%emt 0:04:41]} Rxh2 {[%emt 0:03:32]} 31. Rc2 {[%emt 0:01:41]} Rh4 {[%emt 0:02:56]} 32. Bxc5 {[%emt 0:00:37]} Rhxf4 {[%emt 0:00:20]} 33. Bxe7 {[%emt 0:02:14]} Rxc4 {[%emt 0:00:15]} 34. Rd2 {[%emt 0:00:26]} Rfd4 {[%emt 0:00:11]} 35. Re2 {[%emt 0:00:05]} Re4 {[%emt 0:00:26]} 36. Rd2 {[%emt 0:00:06]} Rxe5 {[%emt 0:00:17]} 37. Bf6 {[%emt 0:00:50]} Re8 {[%emt 0:02:51]} 38. Rd7 {[%emt 0:00:19]} b6 {[%emt 0:16:36]} 39. Rb7 {[%emt 0:02:58]} Rce4 {[%emt 0:00:10]} 40. Bc3 {[%emt 0:04:01]} Rc8 {[%emt 0:04:45]} 41. Bd2 {[%emt 0:16:10]} Re6 {[%emt 0:20:20]} 42. Be3 {[%emt 0:02:48]} Rxe3 {[%emt 0:00:25]} 43. fxe3 {[%emt 0:00:15]} Rc1+ {[%emt 0:00:03]} 44. Ke2 {[%emt 0:00:26]} Rc2+ {[%emt 0:00:07]} 45. Kd3 {[%emt 0:00:16]} Rxa2 {[%emt 0:00:24]} 46. Rxb6 {[%emt 0:00:04]} a3 {[%emt 0:07:07]} 47. Ra6 {[%emt 0:01:00]} Rb2 {[%emt 0:00:45]} 48. Kc4 {[%emt 0:00:08]} a2 {[%emt 0:00:46]} 49. Kc5 {[%emt 0:00:14]} h5 {[%emt 0:01:20]} 50. Kc6 {[%emt 0:00:48]} h4 {[%emt 0:00:04]} 51. b6 {[%emt 0:00:05]} h3 {[%emt 0:00:05]} 52. b7 {[%emt 0:00:07]} h2 {[%emt 0:00:23]} 0-1

[Event "DSAM Bad Wildungen 2024"]
[Site "Bad Wildungen"]
[Date "2024.08.02"]
[Round "4.25"]
[White "Dorendorf, Mika"]
[Black "Schulze-Bergcamen, Stefan"]
[Result "1-0"]
[Annotator "ChessBase"]
[ECO "D36"]
[WhiteElo "1959"]
[BlackElo "2042"]
[PlyCount "97"]
[EventDate "2024.07.31"]
[EventCountry "GER"]
[SourceTitle "playchess.com"]
[Source "ChessBase"]
[SourceQuality "1"]
[TimeControl "40/5400+30:900+30"]

1. d4 {[%emt 0:00:02]} d5 {[%emt 0:00:07]} 2. c4 {[%emt 0:00:03]} e6 {[%emt 0:00:06]} 3. Nc3 {[%emt 0:00:06]} Nf6 {[%emt 0:00:09]} 4. cxd5 {[%emt 0:00:03]} exd5 {[%emt 0:00:11]} 5. Bg5 {[%emt 0:00:04]} c6 {[%emt 0:00:27]} 6. e3 {[%emt 0:00:09]} Be7 {[%emt 0:00:36]} 7. Bd3 {[%emt 0:00:09]} O-O {[%emt 0:01:44]} 8. Qc2 {[%emt 0:00:14]} Nbd7 {[%emt 0:00:38]} 9. Nf3 {[%emt 0:00:34]} Re8 {[%emt 0:01:10]} 10. O-O {[%emt 0:00:38]} Nf8 {[%emt 0:01:07]} 11. Rab1 {[%emt 0:00:17]} g6 {[%emt 0:03:02]} 12. b4 {[%emt 0:01:16]} a6 {[%emt 0:04:00]} 13. a4 {[%emt 0:01:00]} Ne6 {[%emt 0:01:31]} 14. Bh4 {[%emt 0:01:32]} Ng7 {[%emt 0:02:43]} 15. b5 {[%emt 0:00:42]} axb5 {[%emt 0:00:40]} 16. axb5 {[%emt 0:00:07]} Bf5 {[%emt 0:05:51]} 17. Ne5 {[%emt 0:01:29]} c5 {[%emt 0:27:57]} 18. dxc5 {[%emt 0:04:26]} Bxc5 {[%emt 0:05:05]} 19. Bxf5 {[%emt 0:04:31]} Rxe5 {[%emt 0:10:39]} 20. Bd3 {[%emt 0:01:00]} Rh5 {[%emt 0:05:54]} 21. Bxf6 {[%emt 0:02:05]} Qxf6 {[%emt 0:00:14]} 22. Be2 {[%emt 0:00:42]} Rh6 {[%emt 0:07:40]} 23. Nxd5 {[%emt 0:03:09]} Qe5 {[%emt 0:01:14]} 24. Nf6+ {[%emt 0:00:02]} Qxf6 {[%emt 0:02:10]} 25. Qxc5 {[%emt 0:00:05]} Qh4 {[%emt 0:02:05]} 26. h3 {[%emt 0:00:40]} Ne6 {[%emt 0:02:20]} 27. Qb4 {[%emt 0:02:01]} Qf6 {[%emt 0:03:06]} 28. Bf3 {[%emt 0:01:11]} Rh4 {[%emt 0:05:27]} 29. Qd6 {[%emt 0:02:55]} Rd8 {[%emt 0:00:26]} 30. Qg3 {[%emt 0:00:51]} b6 {[%emt 0:02:14]} 31. Rfd1 {[%emt 0:01:20]} Rc4 {[%emt 0:00:55]} 32. Rxd8+ {[%emt 0:00:41]} Qxd8 {[%emt 0:00:02]} 33. Rd1 {[%emt 0:00:10]} Qc8 {[%emt 0:03:42]} 34. Qd6 {[%emt 0:01:04]} Qc7 {[%emt 0:01:40]} 35. Bc6 {[%emt 0:01:28]} h5 {[%emt 0:00:36]} 36. Qxc7 {[%emt 0:00:09]} Nxc7 {[%emt 0:00:09]} 37. Rd8+ {[%emt 0:00:18]} Kg7 {[%emt 0:00:06]} 38. Rb8 {[%emt 0:00:12]} Rc1+ {[%emt 0:01:07]} 39. Kh2 {[%emt 0:00:01]} Rc2 {[%emt 0:00:36]} 40. Kg3 {[%emt 0:05:54]} h4+ {[%emt 0:00:26]} 41. Kf3 {[%emt 0:18:05]} Ne6 {[%emt 0:01:58]} 42. g3 {[%emt 0:00:00]} hxg3 {[%emt 0:03:26]} 43. Kxg3 {[%emt 0:00:00]} Nc5 {[%emt 0:02:18]} 44. Rxb6 {[%emt 0:00:00]} Nd3 {[%emt 0:00:19]} 45. Be4 {[%emt 0:00:00]} Rd2 {[%emt 0:00:54]} 46. Rd6 {[%emt 0:00:00]} Nxf2 {[%emt 0:01:39]} 47. Rxd2 {[%emt 0:00:00]} Nxe4+ {[%emt 0:00:20]} 48. Kg2 {[%emt 0:00:00]} Nxd2 {[%emt 0:00:10]} 49. b6 {[%emt 0:00:00]} 1-0